fUSD/lending_fUSD_20251014
["ID","MTS","AMOUNT","RATE_DAILY","PERIOD"]
[391292334,1760470293946,-500.0,0.0001726,2]
[391292335,1760470293956,-648.03,0.0001726,2]
[391292336,1760470293967,-616.34,0.0001726,2]
[391292337,1760470293976,-500.0,0.0001726,2]
[391292338,1760470293986,-1895.04,0.0001726,2]
[391292339,1760470293996,-3094.15,0.0001726,2]
[391292340,1760470294006,-902.08,0.0001726,2]
[391292341,1760470294017,-500.0,0.0001726,2]
[391292342,1760470294027,-650.29,0.0001726,2]
[391292343,1760470294037,-500.0,0.0001726,2]
[391292344,1760470294050,-500.0,0.0001726,2]
[391292345,1760470294060,-500.0,0.0001726,2]
[391292346,1760470294071,-804.94,0.0001726,2]
[391292347,1760470294081,-546.43,0.0001726,2]
[391292348,1760470294092,-546.43,0.0001726,2]
[391292349,1760470294103,-538.73,0.0001726,2]
[391292350,1760470294114,-1022.96,0.0001726,2]
[391292351,1760470294124,-2935.13,0.0001726,2]
[391292352,1760470294135,-500.0,0.0001726,2]
[391292353,1760470294145,-500.0,0.0001726,2]
[391292354,1760470294155,-537.84,0.0001726,2]
[391292355,1760470294165,-500.0,0.0001726,2]
[391292356,1760470294175,-2764.87,0.0001726,2]
[391292357,1760470294185,-659.88,0.0001726,2]
[391292358,1760470294195,-1330.56,0.0001726,2]
[391292359,1760470294205,-1018.27,0.0001726,2]
[391292360,1760470294215,-680.65,0.0001726,2]
[391292361,1760470294225,-5752.66,0.0001726,2]
[391292362,1760470294238,-1055.39,0.0001726,2]
[391292363,1760470294249,-1431.61,0.0001726,2]
[391292364,1760470294259,-500.0,0.0001726,2]
[391292365,1760470294270,-942.55,0.0001726,2]
[391292366,1760470294280,-1763.11,0.0001726,2]
[391292367,1760470294290,-598.18,0.0001726,2]
[391292368,1760470294301,-1451.44,0.0001726,2]
[391292369,1760470294311,-364.81907602,0.0001726,2]
[391292370,1760470294321,-834.05,0.0001726,2]
[391292371,1760470294332,-500.0,0.0001726,2]
[391292372,1760470294342,-151.0,0.0001726,2]
[391292373,1760470294353,-500.0,0.0001726,2]
[391292374,1760470294363,-798.19,0.0001726,2]
[391292375,1760470294373,-1343.45,0.0001726,2]
[391292376,1760470294383,-500.0,0.0001726,2]
[391292377,1760470294399,-2054.64,0.0001726,2]
[391292378,1760470294409,-500.0,0.0001726,2]
[391292379,1760470294419,-500.0,0.0001726,2]
[391292380,1760470294431,-500.0,0.0001726,2]
[391292381,1760470294444,-633.93,0.0001726,2]
[391292382,1760470294455,-711.68,0.0001726,2]
[391292383,1760470294466,-1171.32,0.0001726,2]
[391292384,1760470294476,-500.0,0.0001726,2]
[391292385,1760470294487,-1888.62,0.0001726,2]
[391292386,1760470294497,-1025.61,0.0001726,2]
[391292387,1760470294507,-500.0,0.0001726,2]
[391292388,1760470294517,-500.0,0.0001726,2]
[391292389,1760470294527,-567.23,0.0001726,2]
[391292390,1760470294538,-513.73,0.0001726,2]
[391292391,1760470294548,-500.0,0.0001726,2]
[391292392,1760470294558,-525.61,0.0001726,2]
[391292393,1760470294568,-981.77,0.0001726,2]
[391292394,1760470294578,-500.0,0.0001726,2]
[391292395,1760470294588,-578.60060088,0.0001726,2]
[391292396,1760470294598,-568.54,0.0001726,2]
[391292397,1760470294608,-805.2,0.0001726,2]
[391292398,1760470294619,-1873.93,0.0001726,2]
[391292399,1760470294629,-819.79,0.0001726,2]
[391292400,1760470294640,-500.0,0.0001726,2]
[391292401,1760470294650,-2176.18,0.0001726,2]
[391292402,1760470294661,-1418.22,0.0001726,2]
[391292403,1760470294670,-609.99,0.0001726,2]
[391292404,1760470294680,-590.55,0.0001726,2]
[391292405,1760470294690,-1424.18,0.0001726,2]
[391292406,1760470294700,-2034.47,0.0001726,2]
[391292407,1760470294710,-638.62,0.0001726,2]
[391292408,1760470294720,-685.15,0.0001726,2]
[391292409,1760470294730,-500.0,0.0001726,2]
[391292410,1760470294740,-689.67,0.0001726,2]
[391292411,1760470294750,-1814.26,0.0001726,2]
[391292412,1760470294761,-500.0,0.0001726,2]
[391292413,1760470294771,-2635.51,0.0001726,2]
[391292414,1760470294781,-729.39,0.0001726,2]
[391292415,1760470294791,-500.0,0.0001726,2]
[391292416,1760470294802,-500.0,0.0001726,2]
[391292417,1760470294820,-500.0,0.0001726,2]
[391292418,1760470294831,-755.17,0.0001726,2]
[391292419,1760470294842,-500.0,0.0001726,2]
[391292420,1760470294852,-500.0,0.0001726,2]
[391292421,1760470294863,-501.16,0.0001726,2]
[391292422,1760470294873,-500.0,0.0001726,2]
[391292423,1760470294883,-711.22,0.0001726,2]
[391292424,1760470294894,-1272.84,0.0001726,2]
[391292425,1760470294904,-151.0,0.0001726,2]
[391292426,1760470294915,-500.0,0.0001726,2]
[391292427,1760470294925,-890.49,0.0001726,2]
[391292428,1760470294935,-719.2,0.0001726,2]
[391292429,1760470294945,-1582.93,0.0001726,2]
[391292430,1760470294956,-151.0,0.0001726,2]
[391292431,1760470294966,-857.66,0.0001726,2]
[391292432,1760470294976,-10435.78,0.0001726,2]
[391292433,1760470294986,-500.0,0.0001726,2]
[391292434,1760470294997,-500.0,0.0001726,2]
[391292435,1760470295008,-500.0,0.0001726,2]
[391292436,1760470295018,-534.4,0.0001726,2]
[391292437,1760470295028,-500.0,0.0001726,2]
[391292438,1760470295039,-1323.5,0.0001726,2]
[391292439,1760470295049,-500.0,0.0001726,2]
[391292440,1760470295059,-1398.63,0.0001726,2]
[391292441,1760470295070,-1198.39,0.0001726,2]
[391292442,1760470295080,-500.0,0.0001726,2]
[391292443,1760470295090,-620.29,0.0001726,2]
[391292444,1760470295101,-2396.21,0.0001726,2]
[391292445,1760470295112,-500.0,0.0001726,2]
[391292446,1760470295122,-1951.49,0.0001726,2]
[391292447,1760470295134,-719.31,0.0001726,2]
[391292448,1760470295144,-1554.16,0.0001726,2]
[391292449,1760470295154,-500.0,0.0001726,2]
[391292450,1760470295164,-500.0,0.0001726,2]
[391292451,1760470295175,-500.0,0.0001726,2]
[391292452,1760470295189,-1628.17,0.0001726,2]
[391292453,1760470295201,-578.55,0.0001726,2]
[391292454,1760470295211,-500.0,0.0001726,2]
[391292455,1760470295222,-500.0,0.0001726,2]
[391292456,1760470295233,-500.0,0.0001726,2]
[391292457,1760470295243,-1167.36,0.0001726,2]
[391292458,1760470295254,-151.0,0.0001726,2]
[391292459,1760470295265,-567.89,0.0001726,2]
[391292460,1760470295276,-1328.93,0.0001726,2]
[391292461,1760470295286,-500.0,0.0001726,2]
[391292462,1760470295297,-151.0,0.0001726,2]
[391292463,1760470295307,-500.0,0.0001726,2]
[391292464,1760470295318,-1687.88,0.0001726,2]
[391292465,1760470295328,-3319.42,0.0001726,2]
[391292466,1760470295338,-500.0,0.0001726,2]
[391292467,1760470295349,-643.75,0.0001726,2]
[391292468,1760470295359,-500.0,0.0001726,2]
[391292469,1760470295370,-1045.31,0.0001726,2]
[391292470,1760470295381,-1001.34,0.0001726,2]
[391292471,1760470295395,-2393.74,0.0001726,2]
[391292472,1760470295406,-686.47,0.0001726,2]
[391292473,1760470295416,-1897.76,0.0001726,2]
[391292474,1760470295427,-756.77,0.0001726,2]
[391292475,1760470295439,-673.0,0.0001726,2]
[391292476,1760470295450,-500.0,0.0001726,2]
[391292477,1760470295460,-863.92,0.0001726,2]
[391292478,1760470295475,-850.77,0.0001726,2]
[391292479,1760470295485,-500.0,0.0001726,2]
[391292480,1760470295495,-500.63,0.0001726,2]
[391292481,1760470295506,-500.0,0.0001726,2]
[391292482,1760470295516,-2023.15,0.0001726,2]
[391292483,1760470295527,-712.64,0.0001726,2]
[391292484,1760470295538,-740.79,0.0001726,2]
[391292485,1760470295548,-1575.06,0.0001726,2]
[391292486,1760470295559,-500.0,0.0001726,2]
[391292487,1760470295570,-500.0,0.0001726,2]
[391292488,1760470295581,-500.0,0.0001726,2]
[391292489,1760470295592,-1658.9,0.0001726,2]
[391292490,1760470295602,-500.0,0.0001726,2]
[391292491,1760470295613,-625.32,0.0001726,2]
[391292492,1760470295624,-651.34,0.0001726,2]
[391292493,1760470295636,-500.0,0.0001726,2]
[391292494,1760470295648,-620.77,0.0001726,2]
[391292495,1760470295659,-500.0,0.0001726,2]
[391292496,1760470295670,-1232.03,0.0001726,2]
[391292497,1760470295681,-2642.66,0.0001726,2]
[391292498,1760470295691,-1600.88,0.0001726,2]
[391292499,1760470295702,-500.0,0.0001726,2]
[391292500,1760470295712,-500.0,0.0001726,2]
[391292501,1760470295722,-500.0,0.0001726,2]
[391292502,1760470295733,-500.0,0.0001726,2]
[391292503,1760470295744,-659.92,0.0001726,2]
[391292504,1760470295757,-1435.69,0.0001726,2]
[391292505,1760470295768,-3517.82,0.0001726,2]
[391292506,1760470295779,-500.0,0.0001726,2]
[391292507,1760470295791,-500.0,0.0001726,2]
[391292508,1760470296131,-972.35,0.0001726,2]
[391292509,1760470296141,-500.0,0.0001726,2]
[391292510,1760470296150,-625.47,0.0001726,2]
[391292511,1760470296160,-500.0,0.0001726,2]
[391292512,1760470296170,-463.0356499,0.0001726,2]
[391292513,1760470296179,-500.0,0.0001726,2]
[391292514,1760470296189,-500.0,0.0001726,2]
[391292515,1760470296198,-500.0,0.0001726,2]
[391292516,1760470296207,-500.0,0.0001726,2]
[391292517,1760470296217,-500.0,0.0001726,2]
[391292518,1760470296226,-546.28,0.0001726,2]
[391292519,1760470296235,-587.64,0.0001726,2]
[391292520,1760470296247,-2105.78,0.0001726,2]
[391292521,1760470296256,-500.0,0.0001726,2]
[391292522,1760470296266,-500.0,0.0001726,2]
[391292523,1760470296275,-500.0,0.0001726,2]
[391292524,1760470296285,-2603.49,0.0001726,2]
[391292525,1760470296295,-500.0,0.0001726,2]
[391292526,1760470296305,-647.17,0.0001726,2]
[391292527,1760470296315,-500.0,0.0001726,2]
[391292528,1760470296324,-500.0,0.0001726,2]
[391292529,1760470296334,-500.0,0.0001726,2]
[391292530,1760470296344,-500.0,0.0001726,2]
[391292531,1760470296355,-151.0,0.0001726,2]
[391292532,1760470296365,-500.0,0.0001726,2]
[391292533,1760470296374,-502.84,0.0001726,2]
[391292534,1760470296384,-6059.59,0.0001726,2]
[391292535,1760470296396,-151.0,0.0001726,2]
[391292536,1760470296406,-768.7,0.0001726,2]
[391292537,1760470296416,-151.0,0.0001726,2]
[391292538,1760470296425,-1848.08,0.0001726,2]
[391292539,1760470296438,-500.0,0.0001726,2]
[391292540,1760470296447,-742.68,0.0001726,2]
[391292541,1760470296456,-1628.55,0.0001726,2]
[391292542,1760470296467,-500.0,0.0001726,2]
[391292543,1760470296476,-500.0,0.0001726,2]
[391292544,1760470296486,-1839.83,0.0001726,2]
[391292545,1760470296495,-1438.2,0.0001726,2]
[391292546,1760470296504,-500.0,0.0001726,2]
[391292547,1760470296513,-867.7,0.0001726,2]
[391292548,1760470296522,-500.0,0.0001726,2]
[391292549,1760470296531,-2842.34,0.0001726,2]
[391292550,1760470296541,-668.29,0.0001726,2]
[391292551,1760470296551,-577.73,0.0001726,2]
[391292552,1760470296560,-1275.83,0.0001726,2]
[391292553,1760470296570,-500.0,0.0001726,2]
[391292554,1760470296579,-602.78772,0.0001726,2]
[391292555,1760470296588,-660.44,0.0001726,2]
[391292556,1760470296597,-151.0,0.0001726,2]
[391292557,1760470296607,-2184.34,0.0001726,2]
[391292558,1760470296616,-822.43,0.0001726,2]
[391292559,1760470296625,-500.0,0.0001726,2]
[391292560,1760470296634,-602.78772,0.0001726,2]
[391292561,1760470296653,-823.92,0.0001726,2]
[391292562,1760470296662,-151.0,0.0001726,2]
[391292563,1760470296672,-602.78772,0.0001726,2]
[391292564,1760470296682,-1163.95,0.0001726,2]
[391292565,1760470296691,-568.93,0.0001726,2]
[391292566,1760470296700,-1583.46,0.0001726,2]
[391292567,1760470296710,-602.78772,0.0001726,2]
[391292568,1760470296720,-640.87,0.0001726,2]
[391292569,1760470296730,-399.72089934,0.0001726,2]
[391292570,1760470296739,-547.36,0.0001726,2]
[391292571,1760470296749,-500.0,0.0001726,2]
[391292572,1760470296759,-500.0,0.0001726,2]
[391292573,1760470296769,-635.26,0.0001726,2]
[391292574,1760470296778,-2511.43,0.0001726,2]
[391292575,1760470296788,-1535.43,0.0001726,2]
[391292576,1760470296797,-1241.62,0.0001726,2]
[391292577,1760470296806,-879.44,0.0001726,2]
[391292578,1760470296817,-883.03,0.0001726,2]
[391292579,1760470296826,-1178.98,0.0001726,2]
[391292580,1760470296836,-3858.25,0.0001726,2]
[391292581,1760470296846,-1286.04,0.0001726,2]
[391292582,1760470296856,-540.2,0.0001726,2]
[391292583,1760470296866,-1672.26,0.0001726,2]
[391292584,1760470296876,-500.0,0.0001726,2]
[391292585,1760470296886,-844.9,0.0001726,2]
[391292586,1760470296895,-957.32,0.0001726,2]
[391292587,1760470296905,-1660.48,0.0001726,2]
[391292588,1760470296915,-500.0,0.0001726,2]
[391292589,1760470296924,-540.05058694,0.0001726,2]
[391292590,1760470296934,-500.0,0.0001726,2]
[391292591,1760470296944,-1500.57,0.0001726,2]
[391292592,1760470296954,-634.75,0.0001726,2]
[391292593,1760470296964,-500.0,0.0001726,2]
[391292594,1760470296973,-500.0,0.0001726,2]
[391292595,1760470296983,-500.0,0.0001726,2]
[391292596,1760470296992,-3980.53,0.0001726,2]
[391292597,1760470297002,-500.0,0.0001726,2]
[391292598,1760470297012,-2823.14,0.0001726,2]
[391292599,1760470297028,-500.0,0.0001726,2]
[391292600,1760470297038,-2072.52,0.0001726,2]
[391292601,1760470297048,-500.0,0.0001726,2]
[391292602,1760470297058,-500.0,0.0001726,2]
[391292603,1760470297067,-1494.42,0.0001726,2]
[391292604,1760470297077,-151.0,0.0001726,2]
[391292605,1760470297087,-500.0,0.0001726,2]
[391292606,1760470297097,-500.0,0.0001726,2]
[391292607,1760470297107,-1706.92,0.0001726,2]
[391292608,1760470297117,-151.0,0.0001726,2]
[391292609,1760470297127,-500.0,0.0001726,2]
[391292610,1760470297139,-5357.39,0.0001726,2]
[391292611,1760470297148,-500.0,0.0001726,2]
[391292612,1760470297158,-500.0,0.0001726,2]
[391292613,1760470297168,-500.0,0.0001726,2]
[391292614,1760470297177,-1221.47,0.0001726,2]
[391292615,1760470297187,-500.0,0.0001726,2]
[391292616,1760470297197,-978.13,0.0001726,2]
[391292617,1760470297207,-2213.18,0.0001726,2]
[391292618,1760470297217,-151.0,0.0001726,2]
[391292619,1760470297228,-2116.87,0.0001726,2]
[391292620,1760470297237,-500.0,0.0001726,2]
[391292621,1760470297247,-151.0,0.0001726,2]
[391292622,1760470297257,-1456.16,0.0001726,2]
[391292623,1760470297267,-500.0,0.0001726,2]
[391292624,1760470297276,-2039.98,0.0001726,2]
[391292625,1760470297286,-1164.19,0.0001726,2]
[391292626,1760470297295,-151.0,0.0001726,2]
[391292627,1760470297306,-1799.54,0.0001726,2]
[391292628,1760470297316,-500.0,0.0001726,2]
[391292629,1760470297325,-151.0,0.0001726,2]
[391292630,1760470297335,-500.0,0.0001726,2]
[391292631,1760470297345,-962.37,0.0001726,2]
[391292632,1760470297355,-2207.73,0.0001726,2]
[391292633,1760470297365,-500.0,0.0001726,2]
[391292634,1760470297374,-500.0,0.0001726,2]
[391292635,1760470297384,-500.0,0.0001726,2]
[391292636,1760470297398,-939.32,0.0001726,2]
[391292637,1760470297408,-970.05,0.0001726,2]
[391292638,1760470297418,-747.36,0.0001726,2]
[391292639,1760470297427,-2163.0,0.0001726,2]
[391292640,1760470297438,-151.0,0.0001726,2]
[391292641,1760470297448,-566.61,0.0001726,2]
[391292642,1760470297458,-1711.37,0.0001726,2]
[391292643,1760470297470,-1861.39,0.0001726,2]
[391292644,1760470297480,-739.01,0.0001726,2]
[391292645,1760470297489,-151.0,0.0001726,2]
[391292646,1760470297499,-151.0,0.0001726,2]
[391292647,1760470297508,-500.0,0.0001726,2]
[391292648,1760470297518,-500.0,0.0001726,2]
[391292649,1760470297528,-153.699509,0.0001726,2]
[391292650,1760470297537,-500.0,0.0001726,2]
[391292651,1760470297547,-2132.14,0.0001726,2]
[391292652,1760470297557,-2856.1,0.0001726,2]
[391292653,1760470297566,-151.0,0.0001726,2]
[391292654,1760470297575,-508.36,0.0001726,2]
[391292655,1760470297585,-546.08,0.0001726,2]
[391292656,1760470297595,-500.0,0.0001726,2]
[391292657,1760470297604,-500.0,0.0001726,2]
[391292658,1760470297614,-500.0,0.0001726,2]
[391292659,1760470297627,-737.9,0.0001726,2]
[391292660,1760470297636,-500.0,0.0001726,2]
[391292661,1760470297646,-745.7,0.0001726,2]
[391292662,1760470297656,-997.08,0.0001726,2]
[391292663,1760470297665,-500.0,0.0001726,2]
[391292664,1760470297675,-2061.78,0.0001726,2]
[391292665,1760470297684,-2150.3,0.0001726,2]
[391292666,1760470297694,-2000.2,0.0001726,2]
[391292667,1760470297703,-500.0,0.0001726,2]
[391292668,1760470297712,-151.0,0.0001726,2]
[391292669,1760470297722,-620.16,0.0001726,2]
[391292670,1760470297731,-8052.01,0.0001726,2]
[391292671,1760470297740,-3572.92,0.0001726,2]
[391292672,1760470297749,-500.0,0.0001726,2]
[391292673,1760470297759,-3061.31,0.0001726,2]
[391292674,1760470297768,-684.54,0.0001726,2]
[391292675,1760470297778,-3541.6,0.0001726,2]
[391292676,1760470297787,-938.18,0.0001726,2]
[391292677,1760470297797,-7503.9,0.0001726,2]
[391292678,1760470297806,-1487.6,0.0001726,2]
[391292679,1760470297815,-500.0,0.0001726,2]
[391292680,1760470297825,-500.0,0.0001726,2]
[391292681,1760470297835,-500.0,0.0001726,2]
[391292682,1760470297844,-500.0,0.0001726,2]
[391292683,1760470297853,-151.0,0.0001726,2]
[391292684,1760470297864,-500.0,0.0001726,2]
[391292685,1760470297874,-256.461261,0.0001726,2]
[391292686,1760470297884,-500.0,0.0001726,2]
[391292687,1760470297893,-500.0,0.0001726,2]
[391292688,1760470297903,-256.461261,0.0001726,2]
[391292689,1760470297913,-500.0,0.0001726,2]
[391292690,1760470297923,-500.0,0.0001726,2]
[391292691,1760470297932,-500.0,0.0001726,2]
[391292692,1760470297941,-151.0,0.0001726,2]
[391292693,1760470297950,-500.0,0.0001726,2]
[391292694,1760470297960,-256.461261,0.0001726,2]
[391292695,1760470297969,-151.0,0.0001726,2]
[391292696,1760470297978,-1043.82,0.0001726,2]
[391292697,1760470297987,-256.461261,0.0001726,2]
[391292698,1760470297997,-4028.9,0.0001726,2]
[391292699,1760470298006,-1169.86,0.0001726,2]
[391292700,1760470298016,-500.0,0.0001726,2]
[391292701,1760470298026,-1439.27,0.0001726,2]
[391292702,1760470298035,-949.53,0.0001726,2]
[391292703,1760470298045,-500.0,0.0001726,2]
[391292704,1760470298054,-500.0,0.0001726,2]
[391292705,1760470298064,-500.0,0.0001726,2]
[391292706,1760470298074,-500.0,0.0001726,2]
[391292707,1760470298084,-500.0,0.0001726,2]
[391292708,1760470298093,-1022.31,0.0001726,2]
[391292709,1760470298103,-2516.02,0.0001726,2]
[391292710,1760470298112,-2298.98,0.0001726,2]
[391292711,1760470298121,-500.0,0.0001726,2]
[391292712,1760470298131,-1563.02,0.0001726,2]
[391292713,1760470298141,-728.12,0.0001726,2]
[391292714,1760470298151,-500.0,0.0001726,2]
[391292715,1760470298160,-500.0,0.0001726,2]
[391292716,1760470298169,-500.0,0.0001726,2]
[391292717,1760470298179,-8556.41,0.0001726,2]
[391292718,1760470298189,-500.0,0.0001726,2]
[391292719,1760470298199,-500.0,0.0001726,2]
[391292720,1760470298208,-500.0,0.0001726,2]
[391292721,1760470298217,-500.0,0.0001726,2]
[391292722,1760470298227,-784.26,0.0001726,2]
[391292723,1760470298236,-767.04,0.0001726,2]
[391292724,1760470298246,-2910.67,0.0001726,2]
[391292725,1760470298257,-1704.56,0.0001726,2]
[391292726,1760470298267,-500.0,0.0001726,2]
[391292727,1760470298277,-500.0,0.0001726,2]
[391292728,1760470298287,-805.53,0.0001726,2]
[391292729,1760470298296,-151.0,0.0001726,2]
[391292730,1760470298305,-500.0,0.0001726,2]
[391292731,1760470298314,-844.08,0.0001726,2]
[391292732,1760470298324,-151.0,0.0001726,2]
[391292733,1760470298335,-500.0,0.0001726,2]
[391292734,1760470298344,-1349.7,0.0001726,2]
[391292735,1760470298354,-1008.94,0.0001726,2]
[391292736,1760470298363,-500.0,0.0001726,2]
[391292737,1760470298374,-2166.86,0.0001726,2]
[391292738,1760470298385,-500.0,0.0001726,2]
[391292739,1760470298399,-151.0,0.0001726,2]
[391292740,1760470298408,-1434.57,0.0001726,2]
[391292741,1760470298418,-736.6,0.0001726,2]
[391292742,1760470298428,-555.68,0.0001726,2]
[391292743,1760470298439,-645.28,0.0001726,2]
[391292744,1760470298448,-241.50255766,0.0001726,2]
[391292745,1760470298458,-630.95,0.0001726,2]
[391292746,1760470298470,-322.093332,0.0001726,2]
[391292747,1760470298480,-500.0,0.0001726,2]
[391292748,1760470298490,-322.093332,0.0001726,2]
[391292749,1760470298499,-1040.12,0.0001726,2]
[391292750,1760470298509,-322.093332,0.0001726,2]
[391292751,1760470298518,-590.69,0.0001726,2]
[391292752,1760470298528,-1310.52,0.0001726,2]
[391292753,1760470298537,-1413.57,0.0001726,2]
[391292754,1760470298547,-500.0,0.0001726,2]
[391292755,1760470298556,-966.64,0.0001726,2]
[391292756,1760470298566,-639.65,0.0001726,2]
[391292757,1760470298575,-322.093332,0.0001726,2]
[391292758,1760470298585,-4638.38,0.0001726,2]
[391292759,1760470298594,-577.65,0.0001726,2]
[391292760,1760470298604,-151.0,0.0001726,2]
[391292761,1760470298613,-151.0,0.0001726,2]
[391292762,1760470298624,-2962.26,0.0001726,2]
[391292763,1760470298634,-1137.18,0.0001726,2]
[391292764,1760470298643,-151.0,0.0001726,2]
[391292765,1760470298653,-699.56,0.0001726,2]
[391292766,1760470298662,-1123.21,0.0001726,2]
[391292767,1760470298672,-159.35841636,0.0001726,2]
[391292768,1760470298682,-152.351337,0.0001726,2]
[391292769,1760470298692,-825.23,0.0001726,2]
[391292770,1760470298701,-171.62003322,0.0001726,2]
[391292771,1760470298710,-940.64,0.0001726,2]
[391292772,1760470298720,-530.21,0.0001726,2]
[391292773,1760470298729,-151.0,0.0001726,2]
[391292774,1760470298739,-2813.0,0.0001726,2]
[391292775,1760470298749,-1663.66,0.0001726,2]
[391292776,1760470298759,-500.0,0.0001726,2]
[391292777,1760470298768,-615.66,0.0001726,2]
[391292778,1760470298778,-151.0,0.0001726,2]
[391292779,1760470298787,-1842.21,0.0001726,2]
[391292780,1760470298796,-774.72,0.0001726,2]
[391292781,1760470298806,-1279.0,0.0001726,2]
[391292782,1760470298815,-500.0,0.0001726,2]
[391292783,1760470298824,-150.0,0.0001726,2]
[391292784,1760470298834,-282.16,0.00017264,2]
[391292785,1760470298843,-977.0,0.00017279,2]
[391292786,1760470298854,-2850.26634265,0.00017293,2]
[391292787,1760470298864,-966.22474038,0.00017306,2]
[391292788,1760470298873,-1000.0,0.00017321,2]
[391292789,1760470298883,-1000.0,0.00017321,2]
[391292790,1760470298893,-1000.0,0.00017321,2]
[391292791,1760470298903,-306.70359965,0.00017321,2]
[391292792,1760470298913,-1000.0,0.00017321,2]
[391292793,1760470298923,-1000.0,0.00017321,2]
[391292794,1760470298933,-672.05550182,0.00017321,2]
[391292795,1760470298942,-1000.0,0.00017321,2]
[391292796,1760470298952,-1000.0,0.00017321,2]
[391292797,1760470298962,-1000.0,0.00017321,2]
[391292798,1760470298971,-159.99843923,0.00017321,2]
[391292799,1760470298981,-501.13500119,0.00017321,2]
[391292800,1760470298990,-1000.0,0.00017321,2]
[391292801,1760470299000,-1001.54659382,0.00017321,2]
[391292802,1760470299010,-779.07640757,0.00017321,2]
[391292803,1760470299019,-1000.0,0.00017321,2]
[391292804,1760470299028,-1000.0,0.00017321,2]
[391292805,1760470299038,-171.27607796,0.00017321,2]
[391292806,1760470299048,-1001.49531303,0.00017321,2]
[391292807,1760470299058,-1425.0,0.00017336,2]
[391292808,1760470299068,-547.74946164,0.00017364,2]
[391292809,1760470299077,-181.61025184,0.00017434,3]
[391292810,1760470299087,-254.15492993,0.00017434,2]
[391292811,1760470299096,-4151.84629343,0.00017434,2]
[391292812,1760470299106,-1000.0,0.0001744,2]
[391292813,1760470299115,-2797.00725095,0.0001747,4]
[391292814,1760470299125,-233.34536115,0.00017486,4]
[391292815,1760470299134,-287.0,0.00017498,2]
[391292816,1760470299145,-188.1,0.000175,2]
[391292817,1760470299155,-300.0,0.00017533,2]
[391292818,1760470299164,-300.0,0.00017533,2]
[391292819,1760470299174,-300.0,0.00017533,2]
[391292820,1760470299183,-300.0,0.00017533,2]
[391292821,1760470299193,-300.0,0.00017533,2]
[391292822,1760470299203,-300.0,0.00017533,2]
[391292823,1760470299212,-300.0,0.00017533,2]
[391292824,1760470299222,-300.0,0.00017533,2]
[391292825,1760470299232,-356.002177,0.00017534,2]
[391292826,1760470299242,-270.138066,0.00017534,2]
[391292827,1760470299252,-270.138066,0.00017534,2]
[391292828,1760470299263,-216.820464,0.00017534,2]
[391292829,1760470299273,-3716.67029,0.00017534,2]
[391292830,1760470299283,-1954.656882,0.00017534,2]
[391292831,1760470299294,-3522.293525,0.00017534,2]
[391292832,1760470299305,-1016.04,0.00017534,2]
[391292833,1760470299315,-1270.21,0.00017534,2]